[Event "Slovakia Open Piestany-A 2022"]
[Site "Piestany"]
[Date "2022.07.16"]
[Round "7.11"]
[White "Hrbek, Stepan"]
[Black "Haring, Filip"]
[Result "0-1"]
[ECO "D53"]
[WhiteElo "2272"]
[BlackElo "2451"]
[Annotator "ChessBase"]
[PlyCount "90"]
[EventDate "2022.07.12"]
[EventType "swiss"]
[EventCountry "SVK"]
[SourceTitle "playchess.com"]
[Source "ChessBase"]
[SourceQuality "1"]
[TimeControl "40/5400+30:1800+30"]

1. c4 {[%emt 0:00:03]} e6 {[%emt 0:00:47]} 2. Nc3 {[%emt 0:00:28]} d5 {[%emt 0:00:10]} 3. d4 {[%emt 0:00:19]} a6 {[%emt 0:01:13]} 4. cxd5 {[%emt 0:00:43]} exd5 {[%emt 0:00:08]} 5. Nf3 {[%emt 0:00:37]} Nf6 {[%emt 0:00:42]} 6. Bg5 {[%emt 0:00:08]} Be7 {[%emt 0:02:06]} 7. e3 {[%emt 0:01:09]} Nbd7 {[%emt 0:05:37]} 8. Bd3 {[%emt 0:01:35]} O-O {[%emt 0:01:47]} 9. O-O {[%emt 0:00:50]} c6 {[%emt 0:03:17]} 10. h3 {[%emt 0:03:07]} Nh5 {[%emt 0:09:19]} 11. Bxe7 {[%emt 0:03:04]} Qxe7 {[%emt 0:00:05]} 12. Ne5 {[%emt 0:06:09]} g6 {[%emt 0:02:12]} 13. f4 {[%emt 0:01:11]} Nxe5 {[%emt 0:05:07]} 14. fxe5 {[%emt 0:18:53]} f6 {[%emt 0:01:02]} 15. g4 {[%emt 0:01:51]} Ng7 {[%emt 0:06:39]} 16. Qf3 {[%emt 0:04:25]} fxe5 {[%emt 0:03:48]} 17. Qxf8+ {[%emt 0:00:09]} Qxf8 {[%emt 0:00:03]} 18. Rxf8+ {[%emt 0:00:09]} Kxf8 {[%emt 0:00:03]} 19. dxe5 {[%emt 0:00:14]} Bd7 {[%emt 0:04:52]} 20. e4 {[%emt 0:10:47]} d4 {[%emt 0:00:51]} 21. Na4 {[%emt 0:00:30]} Rd8 {[%emt 0:26:37]} 22. Nc5 {[%emt 0:08:45]} Bc8 {[%emt 0:00:06]} 23. b4 {[%emt 0:01:02]} Ke7 {[%emt 0:01:14]} 24. Rf1 {[%emt 0:07:14]} Ne6 {[%emt 0:08:01]} 25. Bc4 {[%emt 0:00:12]} b6 {[%emt 0:01:12]} 26. Nd3 {[%emt 0:00:39]} Ng5 {[%emt 0:04:25]} 27. h4 {[%emt 0:02:54]} Be6 {[%emt 0:00:04]} 28. Rc1 {[%emt 0:00:27]} Nxe4 {[%emt 0:02:22]} 29. Bxe6 {[%emt 0:01:09]} Kxe6 {[%emt 0:00:28]} 30. Rxc6+ {[%emt 0:00:13]} Kd5 {[%emt 0:00:07]} 31. b5 {[%emt 0:04:28]} Nc5 {[%emt 0:04:28]} 32. Nf2 {[%emt 0:05:57]} axb5 {[%emt 0:00:44]} 33. Rxb6 {[%emt 0:00:33]} Kc4 {[%emt 0:00:42]} 34. Rc6 {[%emt 0:12:30]} Re8 {[%emt 0:02:00]} 35. Rc7 {[%emt 0:00:47]} Rxe5 {[%emt 0:02:57]} 36. Rxh7 {[%emt 0:00:09]} d3 {[%emt 0:00:13]} 37. h5 {[%emt 0:00:23]} gxh5 {[%emt 0:00:35]} 38. Rxh5 {[%emt 0:00:21]} Re1+ {[%emt 0:01:48]} 39. Kg2 {[%emt 0:00:12]} d2 {[%emt 0:00:09]} 40. Rh1 {[%emt 0:02:55]} Rxh1 {[%emt 0:01:17]} 41. Kxh1 {[%emt 0:30:07]} Ne4 {[%emt 0:30:44]} 42. Nd1 {[%emt 0:00:07]} Kd3 {[%emt 0:00:00]} 43. Kg2 {[%emt 0:00:00]} Ke2 {[%emt 0:00:00]} 44. Nb2 {[%emt 0:00:00]} b4 {[%emt 0:00:00]} 45. Kh2 {[%emt 0:00:00]} d1=Q {[%emt 0:00:00]} 0-1

[Event "Slovakia Open Piestany-A 2022"]
[Site "Piestany"]
[Date "2022.07.16"]
[Round "7.12"]
[White "Piesik, Piotr"]
[Black "Straka, Jozef"]
[Result "1/2-1/2"]
[ECO "A09"]
[WhiteElo "2440"]
[BlackElo "2300"]
[Annotator "ChessBase"]
[PlyCount "27"]
[EventDate "2022.07.12"]
[EventType "swiss"]
[EventCountry "SVK"]
[SourceTitle "playchess.com"]
[Source "ChessBase"]
[SourceQuality "1"]
[TimeControl "40/5400+30:1800+30"]

1. Nf3 {[%emt 0:00:22]} d5 {[%emt 0:00:09]} 2. g3 {[%emt 0:00:11]} c5 {[%emt 0:00:12]} 3. Bg2 {[%emt 0:00:55]} Nc6 {[%emt 0:00:10]} 4. c4 {[%emt 0:14:48]} d4 {[%emt 0:00:23]} 5. d3 {[%emt 0:00:50]} e5 {[%emt 0:00:18]} 6. O-O {[%emt 0:00:06]} Nf6 {[%emt 0:00:26]} 7. e3 {[%emt 0:11:21]} Be7 {[%emt 0:00:39]} 8. exd4 {[%emt 0:01:14]} exd4 {[%emt 0:00:09]} 9. Re1 {[%emt 0:02:10]} O-O {[%emt 0:00:30]} 10. Bf4 {[%emt 0:09:28]} Bd6 {[%emt 0:02:32]} 11. Ne5 {[%emt 0:08:12]} Nxe5 {[%emt 0:02:38]} 12. Bxe5 {[%emt 0:00:07]} Bxe5 {[%emt 0:03:13]} 13. Rxe5 {[%emt 0:00:05]} Qc7 {[%emt 0:00:14]} 14. Re1 {[%emt 0:11:21]} 1/2-1/2

[Event "Slovakia Open Piestany-A 2022"]
[Site "Piestany"]
[Date "2022.07.16"]
[Round "7.13"]
[White "Turcan, Richard"]
[Black "Pacher, Milan"]
[Result "0-1"]
[ECO "D31"]
[WhiteElo "2304"]
[BlackElo "2399"]
[Annotator "ChessBase"]
[PlyCount "128"]
[EventDate "2022.07.12"]
[EventType "swiss"]
[EventCountry "SVK"]
[SourceTitle "playchess.com"]
[Source "ChessBase"]
[SourceQuality "1"]
[TimeControl "40/5400+30:1800+30"]

1. d4 {[%emt 0:02:48]} d5 {[%emt 0:05:12]} 2. c4 {[%emt 0:00:12]} e6 {[%emt 0:00:06]} 3. Nc3 {[%emt 0:01:48]} a6 {[%emt 0:00:05]} 4. cxd5 {[%emt 0:00:42]} exd5 {[%emt 0:00:03]} 5. Nf3 {[%emt 0:01:36]} h6 {[%emt 0:00:31]} 6. Bf4 {[%emt 0:01:14]} Nf6 {[%emt 0:00:07]} 7. Qc2 {[%emt 0:02:16]} Nc6 {[%emt 0:06:32]} 8. e3 {[%emt 0:06:11]} Bd6 {[%emt 0:03:50]} 9. Bg3 {[%emt 0:26:52]} O-O {[%emt 0:03:43]} 10. Be2 {[%emt 0:05:33]} Ne7 {[%emt 0:02:23]} 11. Bd3 {[%emt 0:03:27]} c6 {[%emt 0:04:19]} 12. O-O {[%emt 0:00:54]} g6 {[%emt 0:01:27]} 13. Nh4 {[%emt 0:08:06]} Kg7 {[%emt 0:01:58]} 14. Rab1 {[%emt 0:05:07]} Bxg3 {[%emt 0:04:13]} 15. hxg3 {[%emt 0:02:15]} Ng4 {[%emt 0:01:35]} 16. Nd1 {[%emt 0:08:49]} f5 {[%emt 0:03:13]} 17. f3 {[%emt 0:03:21]} Nf6 {[%emt 0:00:05]} 18. g4 {[%emt 0:00:16]} fxg4 {[%emt 0:00:34]} 19. Bxg6 {[%emt 0:01:51]} g3 {[%emt 0:01:03]} 20. Nc3 {[%emt 0:02:08]} Qd6 {[%emt 0:02:49]} 21. Nf5+ {[%emt 0:06:53]} Nxf5 {[%emt 0:02:04]} 22. Bxf5 {[%emt 0:00:01]} Nh5 {[%emt 0:00:17]} 23. Bxc8 {[%emt 0:05:59]} Raxc8 {[%emt 0:00:03]} 24. f4 {[%emt 0:00:18]} Qe7 {[%emt 0:04:35]} 25. Rf3 {[%emt 0:00:01]} Qh4 {[%emt 0:00:35]} 26. Ne2 {[%emt 0:00:30]} Rce8 {[%emt 0:00:46]} 27. Qc3 {[%emt 0:04:05]} Rg8 {[%emt 0:01:55]} 28. Kf1 {[%emt 0:00:27]} Kf7 {[%emt 0:00:41]} 29. Ng1 {[%emt 0:00:32]} Qh1 {[%emt 0:02:10]} 30. Qc2 {[%emt 0:00:41]} Re4 {[%emt 0:02:47]} 31. Qb3 {[%emt 0:00:14]} Re7 {[%emt 0:00:05]} 32. Qc2 {[%emt 0:00:13]} Nf6 {[%emt 0:00:40]} 33. Qf5 {[%emt 0:00:16]} h5 {[%emt 0:01:02]} 34. Re1 {[%emt 0:01:22]} h4 {[%emt 0:01:13]} 35. Qh3 {[%emt 0:00:31]} Qh2 {[%emt 0:00:06]} 36. Qf5 {[%emt 0:00:30]} Rg6 {[%emt 0:01:27]} 37. Qh3 {[%emt 0:00:29]} Ng4 {[%emt 0:04:44]} 38. f5 {[%emt 0:00:30]} Rg8 {[%emt 0:01:12]} 39. Ke2 {[%emt 0:00:17]} Re4 {[%emt 0:02:00]} 40. Kd2 {[%emt 0:00:42]} Kf6 {[%emt 0:03:13]} 41. Qxh2 {[%emt 0:03:49]} Nxh2 {[%emt 0:01:15]} 42. Rf4 {[%emt 0:00:56]} Rge8 {[%emt 0:01:05]} 43. Rxe4 {[%emt 0:04:08]} dxe4 {[%emt 0:00:50]} 44. Nh3 {[%emt 0:03:17]} Kxf5 {[%emt 0:00:06]} 45. Rc1 {[%emt 0:00:19]} Rd8 {[%emt 0:02:29]} 46. b4 {[%emt 0:02:45]} Kg4 {[%emt 0:02:22]} 47. Ke2 {[%emt 0:03:39]} Rd5 {[%emt 0:00:41]} 48. a4 {[%emt 0:00:55]} Nf3 {[%emt 0:01:58]} 49. Rf1 {[%emt 0:05:34]} Rf5 {[%emt 0:00:31]} 50. Rh1 {[%emt 0:01:03]} a5 {[%emt 0:05:07]} 51. Rb1 {[%emt 0:01:38]} Ng5 {[%emt 0:00:36]} 52. Nf4 {[%emt 0:00:35]} h3 {[%emt 0:00:20]} 53. gxh3+ {[%emt 0:00:31]} Nxh3 {[%emt 0:00:04]} 54. bxa5 {[%emt 0:00:41]} Nxf4+ {[%emt 0:07:37]} 55. exf4 {[%emt 0:00:13]} Kxf4 {[%emt 0:00:06]} 56. Rxb7 {[%emt 0:00:28]} Rxa5 {[%emt 0:00:05]} 57. Rb6 {[%emt 0:03:19]} Rxa4 {[%emt 0:00:09]} 58. Rxc6 {[%emt 0:00:07]} Ra2+ {[%emt 0:00:51]} 59. Kf1 {[%emt 0:00:15]} e3 {[%emt 0:00:05]} 60. Rf6+ {[%emt 0:02:12]} Ke4 {[%emt 0:00:02]} 61. Rg6 {[%emt 0:00:19]} Rf2+ {[%emt 0:00:29]} 62. Ke1 {[%emt 0:00:32]} g2 {[%emt 0:00:06]} 63. Rg4+ {[%emt 0:00:38]} Kd3 {[%emt 0:00:07]} 64. Rg8 {[%emt 0:00:03]} Rf1# {[%emt 0:00:06]} 0-1

[Event "Slovakia Open Piestany-A 2022"]
[Site "Piestany"]
[Date "2022.07.16"]
[Round "7.14"]
[White "Sharma Isha"]
[Black "Favaloro, Andrea"]
[Result "0-1"]
[ECO "C54"]
[WhiteElo "2236"]
[BlackElo "2361"]
[Annotator "ChessBase"]
[PlyCount "66"]
[EventDate "2022.07.12"]
[EventType "swiss"]
[EventCountry "SVK"]
[SourceTitle "playchess.com"]
[Source "ChessBase"]
[SourceQuality "1"]
[TimeControl "40/5400+30:1800+30"]

1. e4 {[%emt 0:00:02]} e5 {[%emt 0:01:39]} 2. Nf3 {[%emt 0:00:12]} Nc6 {[%emt 0:00:21]} 3. Bc4 {[%emt 0:00:06]} Bc5 {[%emt 0:00:16]} 4. c3 {[%emt 0:00:06]} Nf6 {[%emt 0:00:10]} 5. d3 {[%emt 0:00:04]} d6 {[%emt 0:00:19]} 6. Nbd2 {[%emt 0:00:07]} O-O {[%emt 0:00:28]} 7. h3 {[%emt 0:00:11]} a5 {[%emt 0:00:16]} 8. O-O {[%emt 0:04:02]} h6 {[%emt 0:01:22]} 9. Re1 {[%emt 0:00:30]} a4 {[%emt 0:00:29]} 10. Bb5 {[%emt 0:01:08]} Bd7 {[%emt 0:00:13]} 11. Bxa4 {[%emt 0:12:54]} Rxa4 {[%emt 0:00:23]} 12. Qxa4 {[%emt 0:00:04]} Nb4 {[%emt 0:00:07]} 13. Qd1 {[%emt 0:00:49]} Nxd3 {[%emt 0:00:10]} 14. Rf1 {[%emt 0:00:11]} Ba7 {[%emt 0:05:59]} 15. Qc2 {[%emt 0:03:17]} Nf4 {[%emt 0:12:09]} 16. Nc4 {[%emt 0:00:07]} N6h5 {[%emt 0:00:12]} 17. Kh2 {[%emt 0:24:36]} f5 {[%emt 0:03:41]} 18. Bxf4 {[%emt 0:12:15]} Nxf4 {[%emt 0:01:43]} 19. Ncd2 {[%emt 0:06:33]} fxe4 {[%emt 0:09:40]} 20. Qxe4 {[%emt 0:01:57]} Bc6 {[%emt 0:01:57]} 21. Qc4+ {[%emt 0:02:51]} Kh8 {[%emt 0:13:03]} 22. g3 {[%emt 0:01:57]} d5 {[%emt 0:04:23]} 23. Qb3 {[%emt 0:02:09]} Nd3 {[%emt 0:01:43]} 24. Nh4 {[%emt 0:04:36]} Rxf2+ {[%emt 0:09:41]} 25. Rxf2 {[%emt 0:00:05]} Bxf2 {[%emt 0:00:27]} 26. Ndf3 {[%emt 0:01:47]} e4 {[%emt 0:03:54]} 27. Qc2 {[%emt 0:00:52]} Qf6 {[%emt 0:04:59]} 28. Nd4 {[%emt 0:05:40]} Bd7 {[%emt 0:03:56]} 29. Rd1 {[%emt 0:07:49]} c5 {[%emt 0:07:10]} 30. Ndf3 {[%emt 0:00:06]} Qd6 {[%emt 0:05:26]} 31. Rg1 {[%emt 0:03:13]} exf3 {[%emt 0:00:33]} 32. Qxd3 {[%emt 0:03:02]} Bxg1+ {[%emt 0:00:07]} 33. Kh1 {[%emt 0:00:03]} Bf2 {[%emt 0:02:27]} 0-1

[Event "Slovakia Open Piestany-A 2022"]
[Site "Piestany"]
[Date "2022.07.16"]
[Round "7.15"]
[White "Marek, Matyas"]
[Black "Domalchuk-Jonasson, Aleksandr"]
[Result "1-0"]
[ECO "C00"]
[WhiteElo "2354"]
[BlackElo "2244"]
[Annotator "ChessBase"]
[PlyCount "101"]
[EventDate "2022.07.12"]
[EventType "swiss"]
[EventCountry "SVK"]
[SourceTitle "playchess.com"]
[Source "ChessBase"]
[SourceQuality "1"]
[TimeControl "40/5400+30:1800+30"]

1. Nf3 {[%emt 0:00:10]} Nf6 {[%emt 0:03:33]} 2. g3 {[%emt 0:00:04]} e6 {[%emt 0:00:58]} 3. Bg2 {[%emt 0:00:16]} d5 {[%emt 0:00:16]} 4. O-O {[%emt 0:00:09]} Be7 {[%emt 0:01:45]} 5. d3 {[%emt 0:00:07]} c5 {[%emt 0:00:44]} 6. Nbd2 {[%emt 0:00:10]} Nc6 {[%emt 0:00:34]} 7. e4 {[%emt 0:00:06]} b6 {[%emt 0:01:17]} 8. Re1 {[%emt 0:00:20]} Bb7 {[%emt 0:00:37]} 9. a3 {[%emt 0:03:10]} Qc7 {[%emt 0:04:32]} 10. Qe2 {[%emt 0:01:22]} dxe4 {[%emt 0:11:39]} 11. dxe4 {[%emt 0:03:04]} O-O {[%emt 0:02:17]} 12. e5 {[%emt 0:02:35]} Nd7 {[%emt 0:00:20]} 13. c3 {[%emt 0:01:17]} Rfd8 {[%emt 0:03:08]} 14. h4 {[%emt 0:02:59]} Nf8 {[%emt 0:05:19]} 15. h5 {[%emt 0:02:11]} h6 {[%emt 0:02:55]} 16. Nc4 {[%emt 0:05:12]} Qd7 {[%emt 0:12:56]} 17. Bf4 {[%emt 0:11:58]} Qd3 {[%emt 0:04:17]} 18. Qxd3 {[%emt 0:03:05]} Rxd3 {[%emt 0:00:05]} 19. Nd6 {[%emt 0:00:07]} Bxd6 {[%emt 0:03:41]} 20. exd6 {[%emt 0:00:07]} f6 {[%emt 0:00:57]} 21. Rad1 {[%emt 0:00:29]} Rxd1 {[%emt 0:00:52]} 22. Rxd1 {[%emt 0:00:01]} Rd8 {[%emt 0:13:15]} 23. b4 {[%emt 0:02:13]} cxb4 {[%emt 0:02:15]} 24. axb4 {[%emt 0:00:38]} Kf7 {[%emt 0:00:59]} 25. Nh4 {[%emt 0:03:44]} Rd7 {[%emt 0:05:11]} 26. Bf1 {[%emt 0:02:05]} Ke8 {[%emt 0:07:43]} 27. Be3 {[%emt 0:07:11]} Rd8 {[%emt 0:03:19]} 28. f4 {[%emt 0:00:54]} Nd7 {[%emt 0:01:07]} 29. Bc4 {[%emt 0:01:30]} Nf8 {[%emt 0:01:22]} 30. Bb5 {[%emt 0:11:11]} Kf7 {[%emt 0:01:24]} 31. Ba4 {[%emt 0:00:52]} Rc8 {[%emt 0:01:41]} 32. Bb3 {[%emt 0:01:47]} Nd8 {[%emt 0:01:29]} 33. c4 {[%emt 0:01:59]} Nc6 {[%emt 0:00:32]} 34. Ra1 {[%emt 0:00:55]} Ra8 {[%emt 0:01:11]} 35. Bd2 {[%emt 0:04:20]} Rd8 {[%emt 0:02:10]} 36. c5 {[%emt 0:02:25]} a5 {[%emt 0:00:50]} 37. Nf5 {[%emt 0:05:14]} Nxb4 {[%emt 0:00:53]} 38. Bxb4 {[%emt 0:01:23]} axb4 {[%emt 0:00:01]} 39. Ra7 {[%emt 0:00:14]} Rd7 {[%emt 0:00:14]} 40. Rxb7 {[%emt 0:07:21]} Rxb7 {[%emt 0:01:15]} 41. c6 {[%emt 0:30:02]} Ra7 {[%emt 0:07:10]} 42. c7 {[%emt 0:00:00]} Ra8 {[%emt 0:01:18]} 43. Ne7 {[%emt 0:00:00]} Ke8 {[%emt 0:00:56]} 44. Ba4+ {[%emt 0:00:00]} b5 {[%emt 0:02:08]} 45. Bxb5+ {[%emt 0:00:00]} Nd7 {[%emt 0:00:05]} 46. Bc6 {[%emt 0:00:00]} b3 {[%emt 0:00:34]} 47. Bxa8 {[%emt 0:00:00]} Nb6 {[%emt 0:00:04]} 48. Bc6+ {[%emt 0:00:00]} Kf7 {[%emt 0:00:04]} 49. c8=Q {[%emt 0:00:00]} Nxc8 {[%emt 0:00:05]} 50. Nxc8 {[%emt 0:00:00]} b2 {[%emt 0:00:02]} 51. Be4 {[%emt 0:00:00]} 1-0

[Event "Slovakia Open Piestany-A 2022"]
[Site "Piestany"]
[Date "2022.07.16"]
[Round "7.16"]
[White "Leszko, Bence"]
[Black "Bochnicka, Vladimir"]
[Result "1/2-1/2"]
[ECO "B30"]
[WhiteElo "2241"]
[BlackElo "2295"]
[Annotator "ChessBase"]
[PlyCount "82"]
[EventDate "2022.07.12"]
[EventType "swiss"]
[EventCountry "SVK"]
[SourceTitle "playchess.com"]
[Source "ChessBase"]
[SourceQuality "1"]
[TimeControl "40/5400+30:1800+30"]

1. e4 {[%emt 0:17:00]} c5 {[%emt 0:00:10]} 2. Nf3 {[%emt 0:00:07]} Nc6 {[%emt 0:00:07]} 3. Nc3 {[%emt 0:00:33]} e5 {[%emt 0:00:31]} 4. Bc4 {[%emt 0:00:08]} Be7 {[%emt 0:00:28]} 5. d3 {[%emt 0:00:20]} d6 {[%emt 0:00:16]} 6. a4 {[%emt 0:00:35]} Nf6 {[%emt 0:01:50]} 7. Bg5 {[%emt 0:05:05]} O-O {[%emt 0:01:50]} 8. Bxf6 {[%emt 0:00:42]} Bxf6 {[%emt 0:00:13]} 9. Nd5 {[%emt 0:00:19]} Bg5 {[%emt 0:07:28]} 10. Nxg5 {[%emt 0:04:30]} Qxg5 {[%emt 0:00:07]} 11. Ne3 {[%emt 0:00:35]} Qh4 {[%emt 0:07:27]} 12. h3 {[%emt 0:04:43]} Be6 {[%emt 0:03:31]} 13. g3 {[%emt 0:02:43]} Qf6 {[%emt 0:01:38]} 14. c3 {[%emt 0:05:28]} Rad8 {[%emt 0:04:40]} 15. Nd5 {[%emt 0:04:13]} Bxd5 {[%emt 0:00:55]} 16. Bxd5 {[%emt 0:00:05]} Ne7 {[%emt 0:05:37]} 17. c4 {[%emt 0:09:50]} Nc6 {[%emt 0:06:21]} 18. O-O {[%emt 0:03:34]} Kh8 {[%emt 0:02:51]} 19. Qg4 {[%emt 0:05:02]} Nd4 {[%emt 0:02:01]} 20. Kg2 {[%emt 0:02:15]} Qh6 {[%emt 0:06:07]} 21. a5 {[%emt 0:05:34]} Qd2 {[%emt 0:08:54]} 22. Rfd1 {[%emt 0:01:08]} Qb4 {[%emt 0:02:33]} 23. Qg5 {[%emt 0:07:21]} Nb3 {[%emt 0:09:50]} 24. Ra3 {[%emt 0:01:00]} Nxa5 {[%emt 0:01:10]} 25. Qc1 {[%emt 0:03:25]} f5 {[%emt 0:18:55]} 26. Qc3 {[%emt 0:00:51]} Qxc3 {[%emt 0:00:56]} 27. bxc3 {[%emt 0:00:06]} b6 {[%emt 0:00:08]} 28. f3 {[%emt 0:01:55]} g6 {[%emt 0:02:14]} 29. Kf2 {[%emt 0:00:47]} Kg7 {[%emt 0:00:04]} 30. Ke2 {[%emt 0:00:08]} Kf6 {[%emt 0:00:08]} 31. Rh1 {[%emt 0:01:03]} Rc8 {[%emt 0:01:18]} 32. Kd2 {[%emt 0:00:21]} Rfe8 {[%emt 0:00:30]} 33. Ke3 {[%emt 0:00:24]} Re7 {[%emt 0:00:39]} 34. Rha1 {[%emt 0:00:12]} h5 {[%emt 0:00:30]} 35. h4 {[%emt 0:02:06]} g5 {[%emt 0:00:26]} 36. hxg5+ {[%emt 0:01:06]} Kxg5 {[%emt 0:00:13]} 37. exf5 {[%emt 0:00:06]} Kxf5 {[%emt 0:01:35]} 38. Be4+ {[%emt 0:05:09]} Kf6 {[%emt 0:00:45]} 39. Rh1 {[%emt 0:00:37]} Rh8 {[%emt 0:00:16]} 40. Rh4 {[%emt 0:05:56]} Rg7 {[%emt 0:01:49]} 41. Kf2 {[%emt 0:30:22]} Rg5 {[%emt 0:15:48]} 1/2-1/2

[Event "Slovakia Open Piestany-A 2022"]
[Site "Piestany"]
[Date "2022.07.16"]
[Round "7.17"]
[White "Svana, Peter"]
[Black "Aradhya, Garg"]
[Result "0-1"]
[ECO "D15"]
[WhiteElo "2280"]
[BlackElo "2229"]
[Annotator "ChessBase"]
[PlyCount "54"]
[EventDate "2022.07.12"]
[EventType "swiss"]
[EventCountry "SVK"]
[SourceTitle "playchess.com"]
[Source "ChessBase"]
[SourceQuality "1"]
[TimeControl "40/5400+30:1800+30"]

1. d4 {[%emt 0:00:09]} d5 {[%emt 0:00:01]} 2. c4 {[%emt 0:00:10]} c6 {[%emt 0:00:02]} 3. Nf3 {[%emt 0:00:14]} Nf6 {[%emt 0:00:02]} 4. Nc3 {[%emt 0:01:45]} dxc4 {[%emt 0:00:03]} 5. e4 {[%emt 0:01:01]} b5 {[%emt 0:00:51]} 6. e5 {[%emt 0:01:32]} Nd5 {[%emt 0:00:02]} 7. Be2 {[%emt 0:00:09]} e6 {[%emt 0:07:02]} 8. O-O {[%emt 0:04:34]} Be7 {[%emt 0:09:59]} 9. Ne4 {[%emt 0:01:18]} O-O {[%emt 0:01:43]} 10. Qc2 {[%emt 0:02:19]} h6 {[%emt 0:02:31]} 11. Bd2 {[%emt 0:00:47]} Nd7 {[%emt 0:08:09]} 12. b3 {[%emt 0:00:31]} c5 {[%emt 0:04:02]} 13. bxc4 {[%emt 0:06:29]} bxc4 {[%emt 0:00:02]} 14. dxc5 {[%emt 0:02:01]} Nxc5 {[%emt 0:01:04]} 15. Nxc5 {[%emt 0:01:08]} c3 {[%emt 0:03:01]} 16. Bxc3 {[%emt 0:08:19]} Bxc5 {[%emt 0:00:03]} 17. Bd2 {[%emt 0:00:35]} Qe7 {[%emt 0:13:08]} 18. Rab1 {[%emt 0:03:37]} a5 {[%emt 0:03:00]} 19. Qe4 {[%emt 0:01:10]} Ba6 {[%emt 0:08:43]} 20. Bxa6 {[%emt 0:01:40]} Rxa6 {[%emt 0:00:01]} 21. Qg4 {[%emt 0:00:03]} Kh8 {[%emt 0:03:26]} 22. Bg5 {[%emt 0:03:23]} Qa7 {[%emt 0:03:34]} 23. Qh5 {[%emt 0:02:44]} Kg8 {[%emt 0:00:32]} 24. Rb3 {[%emt 0:02:53]} Rb6 {[%emt 0:01:07]} 25. Rd3 {[%emt 0:00:56]} Bxf2+ {[%emt 0:02:06]} 26. Kxf2 {[%emt 0:05:25]} Rb3+ {[%emt 0:00:42]} 27. Be3 {[%emt 0:04:54]} Rb2+ {[%emt 0:00:09]} 0-1

[Event "Slovakia Open Piestany-A 2022"]
[Site "Piestany"]
[Date "2022.07.16"]
[Round "7.18"]
[White "Palchuk, Andrii"]
[Black "Travnicek, Krystof Mikulas"]
[Result "1-0"]
[ECO "D11"]
[WhiteElo "2248"]
[BlackElo "2138"]
[Annotator "ChessBase"]
[PlyCount "71"]
[EventDate "2022.07.12"]
[EventType "swiss"]
[EventCountry "SVK"]
[SourceTitle "playchess.com"]
[Source "ChessBase"]
[SourceQuality "1"]
[TimeControl "40/5400+30:1800+30"]

1. d4 {[%emt 0:07:23]} d5 {[%emt 0:00:32]} 2. Nf3 {[%emt 0:01:06]} Nf6 {[%emt 0:00:23]} 3. c4 {[%emt 0:00:07]} c6 {[%emt 0:00:31]} 4. Qb3 {[%emt 0:00:14]} e6 {[%emt 0:00:40]} 5. Bg5 {[%emt 0:01:53]} a5 {[%emt 0:02:06]} 6. a3 {[%emt 0:06:00]} Nbd7 {[%emt 0:02:04]} 7. Nbd2 {[%emt 0:04:11]} a4 {[%emt 0:08:28]} 8. Qc2 {[%emt 0:04:32]} Qa5 {[%emt 0:02:28]} 9. e3 {[%emt 0:11:10]} Ne4 {[%emt 0:01:00]} 10. Bh4 {[%emt 0:01:14]} Bd6 {[%emt 0:05:39]} 11. Be2 {[%emt 0:06:20]} O-O {[%emt 0:04:53]} 12. O-O {[%emt 0:01:08]} f5 {[%emt 0:02:29]} 13. Nxe4 {[%emt 0:04:47]} fxe4 {[%emt 0:05:42]} 14. Nd2 {[%emt 0:00:19]} Nf6 {[%emt 0:09:58]} 15. f3 {[%emt 0:02:19]} exf3 {[%emt 0:08:48]} 16. Nxf3 {[%emt 0:01:33]} Bd7 {[%emt 0:09:07]} 17. c5 {[%emt 0:13:38]} Be7 {[%emt 0:08:05]} 18. Bd3 {[%emt 0:01:25]} h6 {[%emt 0:02:43]} 19. Ne5 {[%emt 0:02:29]} Be8 {[%emt 0:03:49]} 20. Qe2 {[%emt 0:02:59]} Qc7 {[%emt 0:06:31]} 21. g4 {[%emt 0:04:02]} Bxc5 {[%emt 0:04:27]} 22. g5 {[%emt 0:07:57]} hxg5 {[%emt 0:01:08]} 23. Bg3 {[%emt 0:03:02]} Bd6 {[%emt 0:00:26]} 24. Qg2 {[%emt 0:00:03]} g4 {[%emt 0:05:09]} 25. h3 {[%emt 0:01:38]} Nd7 {[%emt 0:02:21]} 26. hxg4 {[%emt 0:01:45]} Rxf1+ {[%emt 0:01:18]} 27. Rxf1 {[%emt 0:00:04]} Nxe5 {[%emt 0:00:33]} 28. dxe5 {[%emt 0:00:50]} Bc5 {[%emt 0:01:29]} 29. Qh3 {[%emt 0:00:57]} Bxe3+ {[%emt 0:01:30]} 30. Kg2 {[%emt 0:00:12]} g6 {[%emt 0:00:20]} 31. Bh4 {[%emt 0:02:18]} Bh6 {[%emt 0:00:38]} 32. Bf6 {[%emt 0:00:25]} Bg7 {[%emt 0:00:31]} 33. Rh1 {[%emt 0:00:04]} Kf8 {[%emt 0:00:39]} 34. Qh7 {[%emt 0:00:09]} Qf7 {[%emt 0:00:32]} 35. Rf1 {[%emt 0:00:20]} Bxf6 {[%emt 0:00:20]} 36. Rxf6 {[%emt 0:00:05]} 1-0